{"text_format":"1","workbook":"xlsx","n_sheets":3,"sheets":["Picks","Settings","Schedule"],"not_rendered":{"charts":0,"images":0,"macros":1,"external_links":0,"defined_names":9,"comments":0,"pivot_tables":0},"unopened":[],"bounds":{"document_bytes":16777216,"sheet_cells":100000,"rows_first":2000,"rows_last":500,"rows_between":2000,"halvings":0,"cell_chars":16384,"cell_head_chars":4096},"cells_cut":0,"cells_raw":0,"read":"whole","date_system":"1900"}

{"sheet":"Picks","index":0,"n_rows":19,"n_cols":103,"rows_kept":19,"cut":false,"hidden":false,"merged":[[1,25,1,26],[1,27,1,28],[1,29,1,30],[1,31,1,32],[1,33,6,34],[1,21,1,22],[1,23,1,24],[1,11,1,12],[1,13,1,14],[1,15,1,16],[1,17,1,18],[1,19,1,20],[1,1,1,2],[1,3,1,4],[1,5,1,6],[1,7,1,8],[1,9,1,10]]}
["Week Lookup Column Offset",2,null,3,null,4,null,5,null,6,null,7,null,8,null,9,null,10,null,11,null,12,null,13,null,14,null,15,null,16,null,17]
[null,"GAME 1",null,"GAME 2",null,"GAME 3",null,"GAME 4",null,"GAME 5",null,"GAME 6",null,"GAME 7",null,"GAME 8",null,"GAME 9",null,"GAME 10",null,"GAME 11",null,"GAME 12",null,"GAME 13",null,"GAME 14",null,"GAME 15",null,"GAME 16*",null,"Week 1"]
[null,"TEAMS","PTS","TEAMS","PTS","TEAMS","PTS","TEAMS","PTS","TEAMS","PTS","TEAMS","PTS","TEAMS","PTS","TEAMS","PTS","TEAMS","PTS","TEAMS","PTS","TEAMS","PTS","TEAMS","PTS","TEAMS","PTS","TEAMS","PTS","TEAMS","PTS","TEAMS","PTS"]
["VISITOR",{"$f":"IF(VLOOKUP($AH$2&\" Visitors\",SCHEDULE_TABLE,B$1,FALSE)=0,\"\",VLOOKUP($AH$2&\" Visitors\",SCHEDULE_TABLE,B$1,FALSE))","v":"CAR"},null,{"$f":"IF(VLOOKUP($AH$2&\" Visitors\",SCHEDULE_TABLE,D$1,FALSE)=0,\"\",VLOOKUP($AH$2&\" Visitors\",SCHEDULE_TABLE,D$1,FALSE))","v":"TB"},null,{"$f":"IF(VLOOKUP($AH$2&\" Visitors\",SCHEDULE_TABLE,F$1,FALSE)=0,\"\",VLOOKUP($AH$2&\" Visitors\",SCHEDULE_TABLE,F$1,FALSE))","v":"MIN"},null,{"$f":"IF(VLOOKUP($AH$2&\" Visitors\",SCHEDULE_TABLE,H$1,FALSE)=0,\"\",VLOOKUP($AH$2&\" Visitors\",SCHEDULE_TABLE,H$1,FALSE))","v":"CLE"},null,{"$f":"IF(VLOOKUP($AH$2&\" Visitors\",SCHEDULE_TABLE,J$1,FALSE)=0,\"\",VLOOKUP($AH$2&\" Visitors\",SCHEDULE_TABLE,J$1,FALSE))","v":"CIN"},null,{"$f":"IF(VLOOKUP($AH$2&\" Visitors\",SCHEDULE_TABLE,L$1,FALSE)=0,\"\",VLOOKUP($AH$2&\" Visitors\",SCHEDULE_TABLE,L$1,FALSE))","v":"OAK"},null,{"$f":"IF(VLOOKUP($AH$2&\" Visitors\",SCHEDULE_TABLE,N$1,FALSE)=0,\"\",VLOOKUP($AH$2&\" Visitors\",SCHEDULE_TABLE,N$1,FALSE))","v":"SD"},null,{"$f":"IF(VLOOKUP($AH$2&\" Visitors\",SCHEDULE_TABLE,P$1,FALSE)=0,\"\",VLOOKUP($AH$2&\" Visitors\",SCHEDULE_TABLE,P$1,FALSE))","v":"BUF"},null,{"$f":"IF(VLOOKUP($AH$2&\" Visitors\",SCHEDULE_TABLE,R$1,FALSE)=0,\"\",VLOOKUP($AH$2&\" Visitors\",SCHEDULE_TABLE,R$1,FALSE))","v":"CHI"},null,{"$f":"IF(VLOOKUP($AH$2&\" Visitors\",SCHEDULE_TABLE,T$1,FALSE)=0,\"\",VLOOKUP($AH$2&\" Visitors\",SCHEDULE_TABLE,T$1,FALSE))","v":"GB"},null,{"$f":"IF(VLOOKUP($AH$2&\" Visitors\",SCHEDULE_TABLE,V$1,FALSE)=0,\"\",VLOOKUP($AH$2&\" Visitors\",SCHEDULE_TABLE,V$1,FALSE))","v":"MIA"},null,{"$f":"IF(VLOOKUP($AH$2&\" Visitors\",SCHEDULE_TABLE,X$1,FALSE)=0,\"\",VLOOKUP($AH$2&\" Visitors\",SCHEDULE_TABLE,X$1,FALSE))","v":"NYG"},null,{"$f":"IF(VLOOKUP($AH$2&\" Visitors\",SCHEDULE_TABLE,Z$1,FALSE)=0,\"\",VLOOKUP($AH$2&\" Visitors\",SCHEDULE_TABLE,Z$1,FALSE))","v":"DET"},null,{"$f":"IF(VLOOKUP($AH$2&\" Visitors\",SCHEDULE_TABLE,AB$1,FALSE)=0,\"\",VLOOKUP($AH$2&\" Visitors\",SCHEDULE_TABLE,AB$1,FALSE))","v":"NE"},null,{"$f":"IF(VLOOKUP($AH$2&\" Visitors\",SCHEDULE_TABLE,AD$1,FALSE)=0,\"\",VLOOKUP($AH$2&\" Visitors\",SCHEDULE_TABLE,AD$1,FALSE))","v":"PIT"},null,{"$f":"IF(VLOOKUP($AH$2&\" Visitors\",SCHEDULE_TABLE,AF$1,FALSE)=0,\"\",VLOOKUP($AH$2&\" Visitors\",SCHEDULE_TABLE,AF$1,FALSE))","v":"LA"}]
["HOME",{"$f":"IF(VLOOKUP($AH$2&\" Homes\",SCHEDULE_TABLE,B$1,FALSE)=0,\"\",VLOOKUP($AH$2&\" Homes\",SCHEDULE_TABLE,B$1,FALSE))","v":"DEN"},null,{"$f":"IF(VLOOKUP($AH$2&\" Homes\",SCHEDULE_TABLE,D$1,FALSE)=0,\"\",VLOOKUP($AH$2&\" Homes\",SCHEDULE_TABLE,D$1,FALSE))","v":"ATL"},null,{"$f":"IF(VLOOKUP($AH$2&\" Homes\",SCHEDULE_TABLE,F$1,FALSE)=0,\"\",VLOOKUP($AH$2&\" Homes\",SCHEDULE_TABLE,F$1,FALSE))","v":"TEN"},null,{"$f":"IF(VLOOKUP($AH$2&\" Homes\",SCHEDULE_TABLE,H$1,FALSE)=0,\"\",VLOOKUP($AH$2&\" Homes\",SCHEDULE_TABLE,H$1,FALSE))","v":"PHI"},null,{"$f":"IF(VLOOKUP($AH$2&\" Homes\",SCHEDULE_TABLE,J$1,FALSE)=0,\"\",VLOOKUP($AH$2&\" Homes\",SCHEDULE_TABLE,J$1,FALSE))","v":"NYJ"},null,{"$f":"IF(VLOOKUP($AH$2&\" Homes\",SCHEDULE_TABLE,L$1,FALSE)=0,\"\",VLOOKUP($AH$2&\" Homes\",SCHEDULE_TABLE,L$1,FALSE))","v":"NO"},null,{"$f":"IF(VLOOKUP($AH$2&\" Homes\",SCHEDULE_TABLE,N$1,FALSE)=0,\"\",VLOOKUP($AH$2&\" Homes\",SCHEDULE_TABLE,N$1,FALSE))","v":"KC"},null,{"$f":"IF(VLOOKUP($AH$2&\" Homes\",SCHEDULE_TABLE,P$1,FALSE)=0,\"\",VLOOKUP($AH$2&\" Homes\",SCHEDULE_TABLE,P$1,FALSE))","v":"BAL"},null,{"$f":"IF(VLOOKUP($AH$2&\" Homes\",SCHEDULE_TABLE,R$1,FALSE)=0,\"\",VLOOKUP($AH$2&\" Homes\",SCHEDULE_TABLE,R$1,FALSE))","v":"HOU"},null,{"$f":"IF(VLOOKUP($AH$2&\" Homes\",SCHEDULE_TABLE,T$1,FALSE)=0,\"\",VLOOKUP($AH$2&\" Homes\",SCHEDULE_TABLE,T$1,FALSE))","v":"JAX"},null,{"$f":"IF(VLOOKUP($AH$2&\" Homes\",SCHEDULE_TABLE,V$1,FALSE)=0,\"\",VLOOKUP($AH$2&\" Homes\",SCHEDULE_TABLE,V$1,FALSE))","v":"SEA"},null,{"$f":"IF(VLOOKUP($AH$2&\" Homes\",SCHEDULE_TABLE,X$1,FALSE)=0,\"\",VLOOKUP($AH$2&\" Homes\",SCHEDULE_TABLE,X$1,FALSE))","v":"DAL"},null,{"$f":"IF(VLOOKUP($AH$2&\" Homes\",SCHEDULE_TABLE,Z$1,FALSE)=0,\"\",VLOOKUP($AH$2&\" Homes\",SCHEDULE_TABLE,Z$1,FALSE))","v":"IND"},null,{"$f":"IF(VLOOKUP($AH$2&\" Homes\",SCHEDULE_TABLE,AB$1,FALSE)=0,\"\",VLOOKUP($AH$2&\" Homes\",SCHEDULE_TABLE,AB$1,FALSE))","v":"ARI"},null,{"$f":"IF(VLOOKUP($AH$2&\" Homes\",SCHEDULE_TABLE,AD$1,FALSE)=0,\"\",VLOOKUP($AH$2&\" Homes\",SCHEDULE_TABLE,AD$1,FALSE))","v":"WAS"},null,{"$f":"IF(VLOOKUP($AH$2&\" Homes\",SCHEDULE_TABLE,AF$1,FALSE)=0,\"\",VLOOKUP($AH$2&\" Homes\",SCHEDULE_TABLE,AF$1,FALSE))","v":"SF"}]
["FAVORITE"]
["WINNER",{"$f":"IF(COUNTA(C4:C5)<2,\"\",IF(C4>C5,B4,IF(C5>C4,B5,\"\")))","v":""},{"$f":"IF(COUNTA(C4:C5)<2,0,ABS(C4-C5))","v":0},{"$f":"IF(COUNTA(E4:E5)<2,\"\",IF(E4>E5,D4,IF(E5>E4,D5,\"\")))","v":""},{"$f":"IF(COUNTA(E4:E5)<2,0,ABS(E4-E5))","v":0},{"$f":"IF(COUNTA(G4:G5)<2,\"\",IF(G4>G5,F4,IF(G5>G4,F5,\"\")))","v":""},{"$f":"IF(COUNTA(G4:G5)<2,0,ABS(G4-G5))","v":0},{"$f":"IF(COUNTA(I4:I5)<2,\"\",IF(I4>I5,H4,IF(I5>I4,H5,\"\")))","v":""},{"$f":"IF(COUNTA(I4:I5)<2,0,ABS(I4-I5))","v":0},{"$f":"IF(COUNTA(K4:K5)<2,\"\",IF(K4>K5,J4,IF(K5>K4,J5,\"\")))","v":""},{"$f":"IF(COUNTA(K4:K5)<2,0,ABS(K4-K5))","v":0},{"$f":"IF(COUNTA(M4:M5)<2,\"\",IF(M4>M5,L4,IF(M5>M4,L5,\"\")))","v":""},{"$f":"IF(COUNTA(M4:M5)<2,0,ABS(M4-M5))","v":0},{"$f":"IF(COUNTA(O4:O5)<2,\"\",IF(O4>O5,N4,IF(O5>O4,N5,\"\")))","v":""},{"$f":"IF(COUNTA(O4:O5)<2,0,ABS(O4-O5))","v":0},{"$f":"IF(COUNTA(Q4:Q5)<2,\"\",IF(Q4>Q5,P4,IF(Q5>Q4,P5,\"\")))","v":""},{"$f":"IF(COUNTA(Q4:Q5)<2,0,ABS(Q4-Q5))","v":0},{"$f":"IF(COUNTA(S4:S5)<2,\"\",IF(S4>S5,R4,IF(S5>S4,R5,\"\")))","v":""},{"$f":"IF(COUNTA(S4:S5)<2,0,ABS(S4-S5))","v":0},{"$f":"IF(COUNTA(U4:U5)<2,\"\",IF(U4>U5,T4,IF(U5>U4,T5,\"\")))","v":""},{"$f":"IF(COUNTA(U4:U5)<2,0,ABS(U4-U5))","v":0},{"$f":"IF(COUNTA(W4:W5)<2,\"\",IF(W4>W5,V4,IF(W5>W4,V5,\"\")))","v":""},{"$f":"IF(COUNTA(W4:W5)<2,0,ABS(W4-W5))","v":0},{"$f":"IF(COUNTA(Y4:Y5)<2,\"\",IF(Y4>Y5,X4,IF(Y5>Y4,X5,\"\")))","v":""},{"$f":"IF(COUNTA(Y4:Y5)<2,0,ABS(Y4-Y5))","v":0},{"$f":"IF(COUNTA(AA4:AA5)<2,\"\",IF(AA4>AA5,Z4,IF(AA5>AA4,Z5,\"\")))","v":""},{"$f":"IF(COUNTA(AA4:AA5)<2,0,ABS(AA4-AA5))","v":0},{"$f":"IF(COUNTA(AC4:AC5)<2,\"\",IF(AC4>AC5,AB4,IF(AC5>AC4,AB5,\"\")))","v":""},{"$f":"IF(COUNTA(AC4:AC5)<2,0,ABS(AC4-AC5))","v":0},{"$f":"IF(COUNTA(AE4:AE5)<2,\"\",IF(AE4>AE5,AD4,IF(AE5>AE4,AD5,\"\")))","v":""},{"$f":"IF(COUNTA(AE4:AE5)<2,0,ABS(AE4-AE5))","v":0},{"$f":"IF(COUNTA(AG4:AG5)<2,\"\",IF(AG4>AG5,AF4,IF(AG5>AG4,AF5,\"\")))","v":""},{"$f":"IF(COUNTA(AG4:AG5)<2,0,ABS(AG4-AG5))","v":0}]
[null,null,null,null,null,null,null,null,null,null,null,null,null,null,null,null,null,null,null,null,null,null,null,null,null,null,null,null,null,null,null,null,null,"*TIE-BREAK","WEEKLY"]
["NAME","PICKS","PTS","PICKS","PTS","PICKS","PTS","PICKS","PTS","PICKS","PTS","PICKS","PTS","PICKS","PTS","PICKS","PTS","PICKS","PTS","PICKS","PTS","PICKS","PTS","PICKS","PTS","PICKS","PTS","PICKS","PTS","PICKS","PTS","PICKS","PTS","POINTS","PTS TOTAL"]
["<Enter Participant 1>",null,null,null,null,null,null,null,null,null,null,null,null,null,null,null,null,null,null,null,null,null,null,null,null,null,null,null,null,null,null,null,null,null,{"$f":"SUM(AO10:BS10)","v":0},null,null,null,null,null,{"$f":"IF(PICK_TYPE=\"Straight Picks\",IF(B$7=\"\",0,IF(B$7=B10,IF(CONF_PTS=\"Yes\",C10,1),0)),IF(PICK_TYPE=\"Vs. Spreads\",IF(ISBLANK(B10),0,IF(B$7=\"\",0,IF(B10=B$6,IF(AND(B$7=B$6,C$7>C$6),IF(CONF_PTS=\"Yes\",C10,1),0),IF(OR(B$7<>B$6,AND(B$7=B$6,C$7<C$6)),IF(CONF_PTS=\"Yes\",C10,1),0)))),0))","v":0},null,{"$f":"IF(PICK_TYPE=\"Straight Picks\",IF(D$7=\"\",0,IF(D$7=D10,IF(CONF_PTS=\"Yes\",E10,1),0)),IF(PICK_TYPE=\"Vs. Spreads\",IF(ISBLANK(D10),0,IF(D$7=\"\",0,IF(D10=D$6,IF(AND(D$7=D$6,E$7>E$6),IF(CONF_PTS=\"Yes\",E10,1),0),IF(OR(D$7<>D$6,AND(D$7=D$6,E$7<E$6)),IF(CONF_PTS=\"Yes\",E10,1),0)))),0))","v":0},null,{"$f":"IF(PICK_TYPE=\"Straight Picks\",IF(F$7=\"\",0,IF(F$7=F10,IF(CONF_PTS=\"Yes\",G10,1),0)),IF(PICK_TYPE=\"Vs. Spreads\",IF(ISBLANK(F10),0,IF(F$7=\"\",0,IF(F10=F$6,IF(AND(F$7=F$6,G$7>G$6),IF(CONF_PTS=\"Yes\",G10,1),0),IF(OR(F$7<>F$6,AND(F$7=F$6,G$7<G$6)),IF(CONF_PTS=\"Yes\",G10,1),0)))),0))","v":0},null,{"$f":"IF(PICK_TYPE=\"Straight Picks\",IF(H$7=\"\",0,IF(H$7=H10,IF(CONF_PTS=\"Yes\",I10,1),0)),IF(PICK_TYPE=\"Vs. Spreads\",IF(ISBLANK(H10),0,IF(H$7=\"\",0,IF(H10=H$6,IF(AND(H$7=H$6,I$7>I$6),IF(CONF_PTS=\"Yes\",I10,1),0),IF(OR(H$7<>H$6,AND(H$7=H$6,I$7<I$6)),IF(CONF_PTS=\"Yes\",I10,1),0)))),0))","v":0},null,{"$f":"IF(PICK_TYPE=\"Straight Picks\",IF(J$7=\"\",0,IF(J$7=J10,IF(CONF_PTS=\"Yes\",K10,1),0)),IF(PICK_TYPE=\"Vs. Spreads\",IF(ISBLANK(J10),0,IF(J$7=\"\",0,IF(J10=J$6,IF(AND(J$7=J$6,K$7>K$6),IF(CONF_PTS=\"Yes\",K10,1),0),IF(OR(J$7<>J$6,AND(J$7=J$6,K$7<K$6)),IF(CONF_PTS=\"Yes\",K10,1),0)))),0))","v":0},null,{"$f":"IF(PICK_TYPE=\"Straight Picks\",IF(L$7=\"\",0,IF(L$7=L10,IF(CONF_PTS=\"Yes\",M10,1),0)),IF(PICK_TYPE=\"Vs. Spreads\",IF(ISBLANK(L10),0,IF(L$7=\"\",0,IF(L10=L$6,IF(AND(L$7=L$6,M$7>M$6),IF(CONF_PTS=\"Yes\",M10,1),0),IF(OR(L$7<>L$6,AND(L$7=L$6,M$7<M$6)),IF(CONF_PTS=\"Yes\",M10,1),0)))),0))","v":0},null,{"$f":"IF(PICK_TYPE=\"Straight Picks\",IF(N$7=\"\",0,IF(N$7=N10,IF(CONF_PTS=\"Yes\",O10,1),0)),IF(PICK_TYPE=\"Vs. Spreads\",IF(ISBLANK(N10),0,IF(N$7=\"\",0,IF(N10=N$6,IF(AND(N$7=N$6,O$7>O$6),IF(CONF_PTS=\"Yes\",O10,1),0),IF(OR(N$7<>N$6,AND(N$7=N$6,O$7<O$6)),IF(CONF_PTS=\"Yes\",O10,1),0)))),0))","v":0},null,{"$f":"IF(PICK_TYPE=\"Straight Picks\",IF(P$7=\"\",0,IF(P$7=P10,IF(CONF_PTS=\"Yes\",Q10,1),0)),IF(PICK_TYPE=\"Vs. Spreads\",IF(ISBLANK(P10),0,IF(P$7=\"\",0,IF(P10=P$6,IF(AND(P$7=P$6,Q$7>Q$6),IF(CONF_PTS=\"Yes\",Q10,1),0),IF(OR(P$7<>P$6,AND(P$7=P$6,Q$7<Q$6)),IF(CONF_PTS=\"Yes\",Q10,1),0)))),0))","v":0},null,{"$f":"IF(PICK_TYPE=\"Straight Picks\",IF(R$7=\"\",0,IF(R$7=R10,IF(CONF_PTS=\"Yes\",S10,1),0)),IF(PICK_TYPE=\"Vs. Spreads\",IF(ISBLANK(R10),0,IF(R$7=\"\",0,IF(R10=R$6,IF(AND(R$7=R$6,S$7>S$6),IF(CONF_PTS=\"Yes\",S10,1),0),IF(OR(R$7<>R$6,AND(R$7=R$6,S$7<S$6)),IF(CONF_PTS=\"Yes\",S10,1),0)))),0))","v":0},null,{"$f":"IF(PICK_TYPE=\"Straight Picks\",IF(T$7=\"\",0,IF(T$7=T10,IF(CONF_PTS=\"Yes\",U10,1),0)),IF(PICK_TYPE=\"Vs. Spreads\",IF(ISBLANK(T10),0,IF(T$7=\"\",0,IF(T10=T$6,IF(AND(T$7=T$6,U$7>U$6),IF(CONF_PTS=\"Yes\",U10,1),0),IF(OR(T$7<>T$6,AND(T$7=T$6,U$7<U$6)),IF(CONF_PTS=\"Yes\",U10,1),0)))),0))","v":0},null,{"$f":"IF(PICK_TYPE=\"Straight Picks\",IF(V$7=\"\",0,IF(V$7=V10,IF(CONF_PTS=\"Yes\",W10,1),0)),IF(PICK_TYPE=\"Vs. Spreads\",IF(ISBLANK(V10),0,IF(V$7=\"\",0,IF(V10=V$6,IF(AND(V$7=V$6,W$7>W$6),IF(CONF_PTS=\"Yes\",W10,1),0),IF(OR(V$7<>V$6,AND(V$7=V$6,W$7<W$6)),IF(CONF_PTS=\"Yes\",W10,1),0)))),0))","v":0},null,{"$f":"IF(PICK_TYPE=\"Straight Picks\",IF(X$7=\"\",0,IF(X$7=X10,IF(CONF_PTS=\"Yes\",Y10,1),0)),IF(PICK_TYPE=\"Vs. Spreads\",IF(ISBLANK(X10),0,IF(X$7=\"\",0,IF(X10=X$6,IF(AND(X$7=X$6,Y$7>Y$6),IF(CONF_PTS=\"Yes\",Y10,1),0),IF(OR(X$7<>X$6,AND(X$7=X$6,Y$7<Y$6)),IF(CONF_PTS=\"Yes\",Y10,1),0)))),0))","v":0},null,{"$f":"IF(PICK_TYPE=\"Straight Picks\",IF(Z$7=\"\",0,IF(Z$7=Z10,IF(CONF_PTS=\"Yes\",AA10,1),0)),IF(PICK_TYPE=\"Vs. Spreads\",IF(ISBLANK(Z10),0,IF(Z$7=\"\",0,IF(Z10=Z$6,IF(AND(Z$7=Z$6,AA$7>AA$6),IF(CONF_PTS=\"Yes\",AA10,1),0),IF(OR(Z$7<>Z$6,AND(Z$7=Z$6,AA$7<AA$6)),IF(CONF_PTS=\"Yes\",AA10,1),0)))),0))","v":0},null,{"$f":"IF(PICK_TYPE=\"Straight Picks\",IF(AB$7=\"\",0,IF(AB$7=AB10,IF(CONF_PTS=\"Yes\",AC10,1),0)),IF(PICK_TYPE=\"Vs. Spreads\",IF(ISBLANK(AB10),0,IF(AB$7=\"\",0,IF(AB10=AB$6,IF(AND(AB$7=AB$6,AC$7>AC$6),IF(CONF_PTS=\"Yes\",AC10,1),0),IF(OR(AB$7<>AB$6,AND(AB$7=AB$6,AC$7<AC$6)),IF(CONF_PTS=\"Yes\",AC10,1),0)))),0))","v":0},null,{"$f":"IF(PICK_TYPE=\"Straight Picks\",IF(AD$7=\"\",0,IF(AD$7=AD10,IF(CONF_PTS=\"Yes\",AE10,1),0)),IF(PICK_TYPE=\"Vs. Spreads\",IF(ISBLANK(AD10),0,IF(AD$7=\"\",0,IF(AD10=AD$6,IF(AND(AD$7=AD$6,AE$7>AE$6),IF(CONF_PTS=\"Yes\",AE10,1),0),IF(OR(AD$7<>AD$6,AND(AD$7=AD$6,AE$7<AE$6)),IF(CONF_PTS=\"Yes\",AE10,1),0)))),0))","v":0},null,{"$f":"IF(PICK_TYPE=\"Straight Picks\",IF(AF$7=\"\",0,IF(AF$7=AF10,IF(CONF_PTS=\"Yes\",AG10,1),0)),IF(PICK_TYPE=\"Vs. Spreads\",IF(ISBLANK(AF10),0,IF(AF$7=\"\",0,IF(AF10=AF$6,IF(AND(AF$7=AF$6,AG$7>AG$6),IF(CONF_PTS=\"Yes\",AG10,1),0),IF(OR(AF$7<>AF$6,AND(AF$7=AF$6,AG$7<AG$6)),IF(CONF_PTS=\"Yes\",AG10,1),0)))),0))","v":0},null,{"$f":"C10","v":0},null,{"$f":"E10","v":0},null,{"$f":"G10","v":0},null,{"$f":"I10","v":0},null,{"$f":"K10","v":0},null,{"$f":"M10","v":0},null,{"$f":"O10","v":0},null,{"$f":"Q10","v":0},null,{"$f":"S10","v":0},null,{"$f":"U10","v":0},null,{"$f":"W10","v":0},null,{"$f":"Y10","v":0},null,{"$f":"AA10","v":0},null,{"$f":"AC10","v":0},null,{"$f":"AE10","v":0},null,{"$f":"AG10","v":0}]
["<Enter Participant 2>",null,null,null,null,null,null,null,null,null,null,null,null,null,null,null,null,null,null,null,null,null,null,null,null,null,null,null,null,null,null,null,null,null,0,null,null,null,null,null,0,null,0,null,0,null,0,null,0,null,0,null,0,null,0,null,0,null,0,null,0,null,0,null,0,null,0,null,0,null,0,null,{"$f":"C11","v":0},null,{"$f":"E11","v":0},null,{"$f":"G11","v":0},null,{"$f":"I11","v":0},null,{"$f":"K11","v":0},null,{"$f":"M11","v":0},null,{"$f":"O11","v":0},null,{"$f":"Q11","v":0},null,{"$f":"S11","v":0},null,{"$f":"U11","v":0},null,{"$f":"W11","v":0},null,{"$f":"Y11","v":0},null,{"$f":"AA11","v":0},null,{"$f":"AC11","v":0},null,{"$f":"AE11","v":0},null,{"$f":"AG11","v":0}]
["<Enter Participant 3>",null,null,null,null,null,null,null,null,null,null,null,null,null,null,null,null,null,null,null,null,null,null,null,null,null,null,null,null,null,null,null,null,null,0,null,null,null,null,null,0,null,0,null,0,null,0,null,0,null,0,null,0,null,0,null,0,null,0,null,0,null,0,null,0,null,0,null,0,null,0,null,0,null,0,null,0,null,0,null,0,null,0,null,0,null,0,null,0,null,0,null,0,null,0,null,0,null,0,null,0,null,0]
["<Enter Participant 4>",null,null,null,null,null,null,null,null,null,null,null,null,null,null,null,null,null,null,null,null,null,null,null,null,null,null,null,null,null,null,null,null,null,0,null,null,null,null,null,0,null,0,null,0,null,0,null,0,null,0,null,0,null,0,null,0,null,0,null,0,null,0,null,0,null,0,null,0,null,0,null,0,null,0,null,0,null,0,null,0,null,0,null,0,null,0,null,0,null,0,null,0,null,0,null,0,null,0,null,0,null,0]
["<Enter Participant 5>",null,null,null,null,null,null,null,null,null,null,null,null,null,null,null,null,null,null,null,null,null,null,null,null,null,null,null,null,null,null,null,null,null,0,null,null,null,null,null,0,null,0,null,0,null,0,null,0,null,0,null,0,null,0,null,0,null,0,null,0,null,0,null,0,null,0,null,0,null,0,null,0,null,0,null,0,null,0,null,0,null,0,null,0,null,0,null,0,null,0,null,0,null,0,null,0,null,0,null,0,null,0]
["<Enter Participant 6>",null,null,null,null,null,null,null,null,null,null,null,null,null,null,null,null,null,null,null,null,null,null,null,null,null,null,null,null,null,null,null,null,null,0,null,null,null,null,null,0,null,0,null,0,null,0,null,0,null,0,null,0,null,0,null,0,null,0,null,0,null,0,null,0,null,0,null,0,null,0,null,0,null,0,null,0,null,0,null,0,null,0,null,0,null,0,null,0,null,0,null,0,null,0,null,0,null,0,null,0,null,0]
["<Enter Participant 7>",null,null,null,null,null,null,null,null,null,null,null,null,null,null,null,null,null,null,null,null,null,null,null,null,null,null,null,null,null,null,null,null,null,0,null,null,null,null,null,0,null,0,null,0,null,0,null,0,null,0,null,0,null,0,null,0,null,0,null,0,null,0,null,0,null,0,null,0,null,0,null,0,null,0,null,0,null,0,null,0,null,0,null,0,null,0,null,0,null,0,null,0,null,0,null,0,null,0,null,0,null,0]
["<Enter Participant 8>",null,null,null,null,null,null,null,null,null,null,null,null,null,null,null,null,null,null,null,null,null,null,null,null,null,null,null,null,null,null,null,null,null,0,null,null,null,null,null,0,null,0,null,0,null,0,null,0,null,0,null,0,null,0,null,0,null,0,null,0,null,0,null,0,null,0,null,0,null,0,null,0,null,0,null,0,null,0,null,0,null,0,null,0,null,0,null,0,null,0,null,0,null,0,null,0,null,0,null,0,null,0]
["<Enter Participant 9>",null,null,null,null,null,null,null,null,null,null,null,null,null,null,null,null,null,null,null,null,null,null,null,null,null,null,null,null,null,null,null,null,null,0,null,null,null,null,null,0,null,0,null,0,null,0,null,0,null,0,null,0,null,0,null,0,null,0,null,0,null,0,null,0,null,0,null,0,null,0,null,0,null,0,null,0,null,0,null,0,null,0,null,0,null,0,null,0,null,0,null,0,null,0,null,0,null,0,null,0,null,0]
["<Enter Participant 10>",null,null,null,null,null,null,null,null,null,null,null,null,null,null,null,null,null,null,null,null,null,null,null,null,null,null,null,null,null,null,null,null,null,0,null,null,null,null,null,0,null,0,null,0,null,0,null,0,null,0,null,0,null,0,null,0,null,0,null,0,null,0,null,0,null,0,null,0,null,0,null,0,null,0,null,0,null,0,null,0,null,0,null,0,null,0,null,0,null,0,null,0,null,0,null,0,null,0,null,0,null,0]

{"sheet":"Settings","index":1,"n_rows":40,"n_cols":7,"rows_kept":40,"cut":false,"hidden":false,"merged":[[2,2,2,3]]}
[]
[]
[null,null,"POOL SETTINGS"]
[]
[]
[null,null,"Pick Type","Straight Picks",null,null,"<-- Here you choose whether participants in your pool are picking teams to win the games OR teams to beat the betting spreads."]
[]
[null,null,"Use Confidence Points?","No",null,null,"<-- Here you choose whether participants in your pool assign confidence points to each individual game or if all games are simply worth 1 point if they get it right."]
[]
[null,null,"Confidence Points Type","1-X",null,null,"<-- Here you choose whether participants in your pool assign one game 1 point, another 2 points, another 3 points, etc., up to the number of games there are for the week or spread a set pool of points between all of the games."]
[]
[null,null,"Confidence Points Pool",100,null,null,"<-- Here you set the size of the confidence points pool, which participants in your pool must spread out amongst all games being played for the week."]
[]
[]
[]
[]
[]
[]
[null,null,"WEEK_LIST"]
[null,null,"Week 1"]
[null,null,"Week 2"]
[null,null,"Week 3"]
[null,null,"Week 4"]
[null,null,"Week 5"]
[null,null,"Week 6"]
[null,null,"Week 7"]
[null,null,"Week 8"]
[null,null,"Week 9"]
[null,null,"Week 10"]
[null,null,"Week 11"]
[null,null,"Week 12"]
[null,null,"Week 13"]
[null,null,"Week 14"]
[null,null,"Week 15"]
[null,null,"Week 16"]
[null,null,"Week 17"]
[null,null,"Wildcard Round"]
[null,null,"Divisional Playoffs"]
[null,null,"Conference Championships"]
[null,null,"Super Bowl"]

{"sheet":"Schedule","index":2,"n_rows":42,"n_cols":18,"rows_kept":42,"cut":false,"hidden":true,"merged":[]}
["Week 1",{"$f":"A1&\" Visitors\"","v":"Week 1 Visitors"},"CAR","TB","MIN","CLE","CIN","OAK","SD","BUF","CHI","GB","MIA","NYG","DET","NE","PIT","LA"]
[null,{"$f":"A1&\" Homes\"","v":"Week 1 Homes"},"DEN","ATL","TEN","PHI","NYJ","NO","KC","BAL","HOU","JAX","SEA","DAL","IND","ARI","WAS","SF"]
["Week 2",{"$f":"A3&\" Visitors\"","v":"Week 2 Visitors"},"NYJ","SF","DAL","CIN","NO","MIA","KC","TEN","BAL","SEA","TB","JAX","ATL","IND","GB","PHI"]
[null,{"$f":"A3&\" Homes\"","v":"Week 2 Homes"},"BUF","CAR","WAS","PIT","NYG","NE","HOU","DET","CLE","LA","ARI","SD","OAK","DEN","MIN","CHI"]
["Week 3",{"$f":"A5&\" Visitors\"","v":"Week 3 Visitors"},"HOU","ARI","OAK","WAS","CLE","BAL","DET","DEN","MIN","LA","SF","NYJ","SD","PIT","CHI","ATL"]
[null,{"$f":"A5&\" Homes\"","v":"Week 3 Homes"},"NE","BUF","TEN","NYG","MIA","JAX","GB","CIN","CAR","TB","SEA","KC","IND","PHI","DAL","NO"]
["Week 4",{"$f":"A7&\" Visitors\"","v":"Week 4 Visitors"},"MIA","IND","TEN","CLE","SEA","BUF","CAR","OAK","DET","DEN","LA","NO","DAL","KC","NYG"]
[null,{"$f":"A7&\" Homes\"","v":"Week 4 Homes"},"CIN","JAX","HOU","WAS","NYJ","NE","ATL","BAL","CHI","TB","ARI","SD","SF","PIT","MIN"]
["Week 5",{"$f":"A9&\" Visitors\"","v":"Week 5 Visitors"},"ARI","NE","PHI","CHI","TEN","WAS","HOU","NYJ","ATL","CIN","BUF","SD","NYG","TB"]
[null,{"$f":"A9&\" Homes\"","v":"Week 5 Homes"},"SF","CLE","DET","IND","MIA","BAL","MIN","PIT","DEN","DAL","LA","OAK","GB","CAR"]
["Week 6",{"$f":"A11&\" Visitors\"","v":"Week 6 Visitors"},"DEN","SF","PHI","CLE","BAL","CAR","JAX","LA","PIT","CIN","KC","ATL","DAL","IND","NYJ"]
[null,{"$f":"A11&\" Homes\"","v":"Week 6 Homes"},"SD","BUF","WAS","TEN","NYG","NO","CHI","DET","MIA","NE","OAK","SEA","GB","HOU","ARI"]
["Week 7",{"$f":"A13&\" Visitors\"","v":"Week 7 Visitors"},"CHI","NYG","NO","IND","MIN","CLE","WAS","OAK","BUF","BAL","TB","SD","NE","SEA","HOU"]
[null,{"$f":"A13&\" Homes\"","v":"Week 7 Homes"},"GB","LA","KC","TEN","PHI","CIN","DET","JAX","MIA","NYJ","SF","ATL","PIT","ARI","DEN"]
["Week 8",{"$f":"A15&\" Visitors\"","v":"Week 8 Visitors"},"JAX","WAS","KC","OAK","SEA","DET","NYJ","GB","NE","SD","ARI","PHI","MIN"]
[null,{"$f":"A15&\" Homes\"","v":"Week 8 Homes"},"TEN","CIN","IND","TB","NO","HOU","CLE","ATL","BUF","DEN","CAR","DAL","CHI"]
["Week 9",{"$f":"A17&\" Visitors\"","v":"Week 9 Visitors"},"ATL","DET","PHI","NYJ","JAX","DAL","PIT","NO","CAR","IND","TEN","DEN","BUF"]
[null,{"$f":"A17&\" Homes\"","v":"Week 9 Homes"},"TB","MIN","NYG","MIA","KC","CLE","BAL","SF","LA","GB","SD","OAK","SEA"]
["Week 10",{"$f":"A19&\" Visitors\"","v":"Week 10 Visitors"},"CLE","HOU","DEN","LA","ATL","KC","CHI","MIN","GB","MIA","SF","DAL","SEA","CIN"]
[null,{"$f":"A19&\" Homes\"","v":"Week 10 Homes"},"BAL","JAX","NO","NYJ","PHI","CAR","TB","WAS","TEN","SD","ARI","PIT","NE","NYG"]
["Week 11",{"$f":"A21&\" Visitors\"","v":"Week 11 Visitors"},"NO","PIT","BAL","JAX","TEN","BUF","TB","CHI","ARI","MIA","NE","PHI","GB","HOU"]
[null,{"$f":"A21&\" Homes\"","v":"Week 11 Homes"},"CAR","CLE","DAL","DET","IND","CIN","KC","NYG","MIN","LA","SF","SEA","WAS","OAK"]
["Week 12",{"$f":"A23&\" Visitors\"","v":"Week 12 Visitors"},"MIN","WAS","PIT","TEN","JAX","CIN","ARI","NYG","LA","SF","SD","SEA","CAR","KC","NE","GB"]
[null,{"$f":"A23&\" Homes\"","v":"Week 12 Homes"},"DET","DAL","IND","CHI","BUF","BAL","ATL","CLE","NO","MIA","HOU","TB","OAK","DEN","NYJ","PHI"]
["Week 13",{"$f":"A25&\" Visitors\"","v":"Week 13 Visitors"},"DAL","KC","DET","LA","DEN","HOU","PHI","MIA","SF","BUF","NYG","WAS","TB","CAR","IND"]
[null,{"$f":"A25&\" Homes\"","v":"Week 13 Homes"},"MIN","ATL","NO","NE","JAX","GB","CIN","BAL","CHI","OAK","PIT","ARI","SD","SEA","NYJ"]
["Week 14",{"$f":"A27&\" Visitors\"","v":"Week 14 Visitors"},"OAK","PIT","DEN","NO","WAS","ARI","SD","CIN","CHI","HOU","MIN","NYJ","ATL","SEA","DAL","BAL"]
[null,{"$f":"A27&\" Homes\"","v":"Week 14 Homes"},"KC","BUF","TEN","TB","PHI","MIA","CAR","CLE","DET","IND","JAX","SF","LA","GB","NYG","NE"]
["Week 15",{"$f":"A29&\" Visitors\"","v":"Week 15 Visitors"},"LA","MIA","GB","TB","JAX","CLE","PHI","TEN","DET","IND","NO","SF","NE","OAK","PIT","CAR"]
[null,{"$f":"A29&\" Homes\"","v":"Week 15 Homes"},"SEA","NYJ","CHI","DAL","HOU","BUF","BAL","KC","NYG","MIN","ARI","ATL","DEN","SD","CIN","WAS"]
["Week 16",{"$f":"A31&\" Visitors\"","v":"Week 16 Visitors"},"NYG","MIA","TB","NYJ","TEN","MIN","SD","WAS","ATL","IND","ARI","SF","CIN","BAL","DEN","DET"]
[null,{"$f":"A31&\" Homes\"","v":"Week 16 Homes"},"PHI","BUF","NO","NE","JAX","GB","CLE","CHI","CAR","OAK","SEA","LA","HOU","PIT","KC","DAL"]
["Week 17",{"$f":"A33&\" Visitors\"","v":"Week 17 Visitors"},"NO","BAL","NYG","HOU","CAR","GB","JAX","NE","CHI","BUF","DAL","CLE","ARI","OAK","KC","SEA"]
[null,{"$f":"A33&\" Homes\"","v":"Week 17 Homes"},"ATL","CIN","WAS","TEN","TB","DET","IND","MIA","MIN","NYJ","PHI","PIT","LA","DEN","SD","SF"]
["Wildcard Round",{"$f":"A35&\" Visitors\"","v":"Wildcard Round Visitors"},"TBD","TBD","TBD",null,null,null,null,null,null,null,null,null,null,null,null,"TBD"]
[null,{"$f":"A35&\" Homes\"","v":"Wildcard Round Homes"},"TBD","TBD","TBD",null,null,null,null,null,null,null,null,null,null,null,null,"TBD"]
["Divisional Playoffs",{"$f":"A37&\" Visitors\"","v":"Divisional Playoffs Visitors"},"TBD","TBD","TBD",null,null,null,null,null,null,null,null,null,null,null,null,"TBD"]
[null,{"$f":"A37&\" Homes\"","v":"Divisional Playoffs Homes"},"TBD","TBD","TBD",null,null,null,null,null,null,null,null,null,null,null,null,"TBD"]
["Conference Championships",{"$f":"A39&\" Visitors\"","v":"Conference Championships Visitors"},"TBD",null,null,null,null,null,null,null,null,null,null,null,null,null,null,"TBD"]
[null,{"$f":"A39&\" Homes\"","v":"Conference Championships Homes"},"TBD",null,null,null,null,null,null,null,null,null,null,null,null,null,null,"TBD"]
["Super Bowl",{"$f":"A41&\" Visitors\"","v":"Super Bowl Visitors"},null,null,null,null,null,null,null,null,null,null,null,null,null,null,null,"TBD"]
[null,{"$f":"A41&\" Homes\"","v":"Super Bowl Homes"},null,null,null,null,null,null,null,null,null,null,null,null,null,null,null,"TBD"]